{"text_format":"1","workbook":"xlsx","n_sheets":9,"sheets":["UP_Rohdaten","Vorlage","Namen","Überhang","Sonderurlaub","Optionen","Kalender","Info","Intern"],"not_rendered":{"charts":0,"images":8,"macros":1,"external_links":0,"defined_names":3,"comments":2,"pivot_tables":0},"unopened":[],"bounds":{"document_bytes":16777216,"sheet_cells":100000,"rows_first":2000,"rows_last":500,"rows_between":2000,"halvings":0,"cell_chars":16384,"cell_head_chars":4096},"cells_cut":0,"cells_raw":0,"read":"whole","date_system":"1900"}

{"sheet":"UP_Rohdaten","index":0,"n_rows":0,"n_cols":0,"rows_kept":0,"cut":false,"hidden":false,"merged":[]}

{"sheet":"Vorlage","index":1,"n_rows":3,"n_cols":36,"rows_kept":3,"cut":false,"hidden":false,"merged":[]}
["Abkürz.","NAME","Abteilung","Rest Vj.","Anspr. Kj.","Sonder-Urlaub","Zusatz-Urlaub","Summe Anspr. 2015","Jan","Feb","Mrz","Apr","Mai","Jun","Jul","Aug","Sep","Okt","Nov","Dez","genommen 2015","Resturlaub 2015","Überhang","Jan.","Feb.","Mrz.","Apr.","Mai.","Jun.","Jul.","Aug.","Sept","Okt.","Nov.","Dez.","Summe krank"]
[null,null,null,null,null,null,null,{"$f":"SUM(D2:G2)","v":0},null,null,null,null,null,null,null,null,null,null,null,null,{"$f":"SUM(I2:T2)","v":0},{"$f":"Tabelle13[Summe Anspr. 2015]-Tabelle13[genommen 2015]","v":0},{"$f":"Tabelle13[[#This Row],[Resturlaub 2015]]-(Tabelle13[[#This Row],[Anspr. Kj.]]-(8*2.5))+Tabelle13[[#This Row],[Rest Vj.]]","v":20},null,null,null,null,null,null,null,null,null,null,null,null,{"$f":"SUM(X2:AI2)","v":0}]
["Ergebnis",null,null,{"$f":"SUBTOTAL(109,Tabelle13[Rest Vj.])","v":0},{"$f":"SUBTOTAL(109,Tabelle13[Anspr. Kj.])","v":0},{"$f":"SUBTOTAL(109,Tabelle13[Sonder-Urlaub])","v":0},{"$f":"SUBTOTAL(109,Tabelle13[Zusatz-Urlaub])","v":0},{"$f":"SUBTOTAL(109,Tabelle13[Summe Anspr. 2015])","v":0},{"$f":"SUBTOTAL(109,Tabelle13[Jan])","v":0},{"$f":"SUBTOTAL(109,Tabelle13[Feb])","v":0},{"$f":"SUBTOTAL(109,Tabelle13[Mrz])","v":0},{"$f":"SUBTOTAL(109,Tabelle13[Apr])","v":0},{"$f":"SUBTOTAL(109,Tabelle13[Mai])","v":0},{"$f":"SUBTOTAL(109,Tabelle13[Jun])","v":0},{"$f":"SUBTOTAL(109,Tabelle13[Jul])","v":0},{"$f":"SUBTOTAL(109,Tabelle13[Aug])","v":0},{"$f":"SUBTOTAL(109,Tabelle13[Sep])","v":0},{"$f":"SUBTOTAL(109,Tabelle13[Okt])","v":0},{"$f":"SUBTOTAL(109,Tabelle13[Nov])","v":0},{"$f":"SUBTOTAL(109,Tabelle13[Dez])","v":0},{"$f":"SUBTOTAL(109,Tabelle13[genommen 2015])","v":0},{"$f":"SUBTOTAL(109,Tabelle13[Resturlaub 2015])","v":0},{"$f":"SUBTOTAL(109,Tabelle13[Überhang])","v":20},{"$f":"SUBTOTAL(109,Tabelle13[Jan.])","v":0},{"$f":"SUBTOTAL(109,Tabelle13[Feb.])","v":0},{"$f":"SUBTOTAL(109,Tabelle13[Mrz.])","v":0},{"$f":"SUBTOTAL(109,Tabelle13[Apr.])","v":0},{"$f":"SUBTOTAL(109,Tabelle13[Mai.])","v":0},{"$f":"SUBTOTAL(109,Tabelle13[Jun.])","v":0},{"$f":"SUBTOTAL(109,Tabelle13[Jul.])","v":0},{"$f":"SUBTOTAL(109,Tabelle13[Aug.])","v":0},{"$f":"SUBTOTAL(109,Tabelle13[Sept])","v":0},{"$f":"SUBTOTAL(109,Tabelle13[Okt.])","v":0},{"$f":"SUBTOTAL(109,Tabelle13[Nov.])","v":0},{"$f":"SUBTOTAL(109,Tabelle13[Dez.])","v":0},{"$f":"SUBTOTAL(109,Tabelle13[Summe krank])","v":0}]

{"sheet":"Namen","index":2,"n_rows":1,"n_cols":11,"rows_kept":1,"cut":false,"hidden":false,"merged":[]}
["Kürzel","NAME","Stelle/Funktion",null,null,null,null,null,null,null,"A1 (FK2)"]

{"sheet":"Überhang","index":3,"n_rows":28,"n_cols":8,"rows_kept":28,"cut":false,"hidden":false,"merged":[]}
["Eintritt:","1.1.2015",null,"Anspruch ohne Austritts-Berücksichtigung",31.5,"Eintritt bereits berücksichtigt durch Urlaubsplaner"]
["Tage pro Monat",{"$f":"DAY(EOMONTH(B1,0))","v":31},null,"Jahresurlaub",24]
["Austritt:","31.12.2015",null,"nicht gearbeitete Monate Austritt:",{"$f":"12-MONTH(B3)","v":0},"genommen:",25.5,"Tage"]
["Tage pro Monat",{"$f":"DAY(EOMONTH(B3,0))","v":31},null,"nicht gearbeitete Tage Austritt (monatsanteilig)",{"$f":"B9","v":0},"Resturlaub:",{"$f":"B5-G3-E6","v":6},"Tage"]
["Anspruch",{"$f":"E1-(E2/12*E5)","v":31.5},null,"nicht gearbeitete Monate Austritt gesamt:",{"$f":"E3+E4","v":0},"RestVJ:",2.5,"Tage"]
["nicht gearbeitete Tage Eintritt",{"$f":"DAY(B1)-1","v":0},null,"Korrektur Resturlaub",{"$f":"E2/12*E5","v":0},"Zusatzurlaub",2,"Tage"]
["Anteil am Monat Eintritt",{"$f":"B6/B2","v":0},null,null,null,"Sonderurlaub",3,"Tage"]
["nicht gearbeitete Tage Austritt",{"$f":"B4-DAY(B3)","v":0},null,null,null,"Monat",12]
["Anteil am Monat Austritt",{"$f":"B8/B4","v":0}]
["nicht gearbeitete Tage gesamt",{"$f":"B6+B8","v":0},null,null,null,"Überhang",{"$f":"IF(G8>MONTH(B3),G4,G4-(B5-(E2/12)*G8)+G5+G6+G7+E6)","v":6},"Tage"]
["Anteil am Monat",{"$f":"B7+B9","v":0}]
["nicht gearbeitete ganze Monate",{"$f":"12-MONTH(B3)+MONTH(B1)-1","v":0}]
["gesamt nicht gearbeitet",{"$f":"B12+B9+B7","v":0}]
["gesamt  gearbeitet",12]
["Anspruch pro Monat",{"$f":"IF(B14=0,0,B5/B14)","v":2.625}]
["Anspruch im"]
["Januar",2.625,null,1]
["Februar",5.25,null,2]
["März",7.875,null,3]
["April",10.5,null,4]
["Mai",13.125,null,5]
["Juni",15.75,null,6]
["Juli",18.375,null,7]
["August",21,null,8]
["September",23.625,null,"]"]
["Oktober",26.25,null,10]
["November",28.875,null,11]
["Dezember",31.5,null,12]

{"sheet":"Sonderurlaub","index":4,"n_rows":9,"n_cols":3,"rows_kept":9,"cut":false,"hidden":true,"merged":[]}
["abc-123 Bergmann, V.  (22)"]
[]
[]
["08.02.2014","Samstag","1 Tag"]
["09.02.2014","Sonntag","2 Tage"]
[]
["05.04.2014","Samstag","1 Tag"]
["06.04.2014","Sonntag","2 Tage"]
["12.04.2014","Samstag","1 Tag"]

{"sheet":"Optionen","index":5,"n_rows":13,"n_cols":5,"rows_kept":13,"cut":false,"hidden":false,"merged":[]}
["Letzter gewählter Pfad zum Ordner in dem die\n\"UP-Rohdaten\" des SL-Urlaubsplaners\" liegen :",null,{"$f":"Intern!A1","v":0}]
[]
[null,null,null,">>","Info  "]
[]
[]
["Letzter gewählter Pfad zum Ordner mit Monats-\nausdrucken im Excelformat, siehe z.B. Jahr 2015 \nin Zeile 1, Spalte C die Schaltfläche  \"Blatt speichern\" :",null,{"$f":"Intern!A3","v":"C:\\Users\\Stefan\\Documents\\Frank\\November 2016\\UP-Rohdaten-Aktuell.xls"}]
[]
[null,null,null,">>","Info  "]
[]
[]
["Sie können wählen zwischen Urlaubs- u. Krankenstand\nDieser wird danach in einem Kalenderblatt angezeigt, \nsiehe Info"]
[]
[null,null,null,">>","Info  "]

{"sheet":"Kalender","index":6,"n_rows":40,"n_cols":11,"rows_kept":40,"cut":false,"hidden":true,"merged":[]}
[null,null,null,null,null,null,null,null,null,null,2]
[null,null,null,null,null,null,null,null,null,null,2015]
[]
[null,null,"Mo","Di","Mi","Do","Fr","Sa","So"]
[]
[null,{"$f":"\"KW \" &WEEKNUM(\"1\"&\".\"&K1&\".\"&K2,2)","v":"KW 5"}]
[]
[null,{"$f":"\"KW \"&WEEKNUM(C8&\".\"&K$1&\".\"&K$2,2)","v":{"$error":"#VALUE!"}}]
[]
[null,{"$f":"\"KW \"&WEEKNUM(C10&\".\"&K$1&\".\"&K$2,2)","v":{"$error":"#VALUE!"}}]
[]
[null,{"$f":"\"KW \"&WEEKNUM(C12&\".\"&K$1&\".\"&K$2,2)","v":{"$error":"#VALUE!"}}]
[]
[null,{"$f":"\"KW \"&WEEKNUM(C14&\".\"&K$1&\".\"&K$2,2)","v":{"$error":"#VALUE!"}}]
[]
[null,{"$f":"IF(C16>0,\"KW \"&WEEKNUM(C16&\".\"&K$1&\".\"&K$2),\"\")","v":""}]
[]
[]
[]
[null,null,"Rest Vorjahr:",null,null,6.5]
[null,null,"Anspruch Kalenderjahr:",null,null,30]
[null,null,"Sonderurlaub:",null,null,0]
[null,null,"Zusatzurlaub:",null,null,0]
[null,null,"Summe Anspruch:",null,null,36.5]
[null,null,"genommener Urlaub:"]
[null,null,"Resturlaub:"]
[null,null,"Überhang:"]
[]
[]
[]
[]
[]
[]
[]
[]
[]
[]
[]
[]
[{"$f":"NOW()","v":"2016-11-11T16:14:20.720"}]

{"sheet":"Info","index":7,"n_rows":126,"n_cols":10,"rows_kept":126,"cut":false,"hidden":false,"merged":[[124,1,124,6],[125,1,125,6],[37,1,37,6],[66,1,66,6],[82,1,82,6],[83,1,83,6],[118,1,118,6],[119,1,119,6],[120,1,120,6],[121,1,121,6],[122,1,122,6],[113,1,113,6],[114,1,114,6],[115,1,115,6],[116,1,116,6],[117,1,117,6],[111,1,111,6],[109,1,109,6],[104,1,104,6],[105,1,105,6],[106,1,106,6],[107,1,107,6],[112,1,112,6],[123,1,123,6],[103,1,103,6],[2,0,3,0],[11,2,11,6],[12,1,12,6],[13,1,13,6],[15,1,15,6],[35,1,35,6],[36,1,36,6],[39,1,39,6],[41,1,41,6],[17,1,17,5],[18,1,18,5],[22,1,22,6],[16,1,16,6],[19,1,19,6],[20,1,20,6],[14,1,14,6],[100,1,100,6],[102,1,102,6],[71,8,71,13],[72,1,72,6],[75,1,75,6],[63,8,63,13],[65,1,65,6],[65,8,65,13],[63,1,63,6],[67,8,67,13],[73,8,73,13],[68,8,68,13],[69,8,69,13],[70,8,70,13],[0,3,0,5],[38,1,38,6],[75,8,75,13],[76,1,76,6],[76,8,76,13],[73,1,73,6],[74,1,74,6],[74,8,74,13],[27,1,27,6],[31,1,31,6],[32,1,32,6],[57,8,57,13],[47,1,47,6],[40,1,40,6],[69,1,69,6],[70,1,70,6],[72,8,72,13],[21,1,21,6],[33,1,33,6],[34,1,34,6],[23,2,24,6],[25,1,25,6],[1,2,1,5],[71,1,71,6],[103,8,103,13],[77,1,77,6],[77,8,77,13],[94,1,94,6],[94,8,94,13],[95,1,95,6],[95,8,95,13],[98,1,98,6],[97,1,97,6],[84,1,84,6],[84,8,84,13],[85,1,85,6],[85,8,85,13],[93,1,93,6],[93,8,93,13],[97,8,97,13],[101,1,101,6],[101,8,101,13],[99,1,99,6],[82,8,82,13],[99,8,99,13],[96,1,96,6],[96,8,96,13],[100,8,100,13]]}
["SL-Tool:  \"u-k-Statistik\"  - Auswertung des SL-Urlaubsplaners mit Excel",null,null,"Vers.1.4-2018,  Stand:  10.11.16",null,null,null,"Version 1.2,  freigeschaltet für:",null,"Die Druckversion finden Sie auf unserer Homepage als PDF-Datei !"]
[]
["Software:\n","Software und Büroservice Christine Schremmer & Jörg Lortz\n63500 Seligenstadt,   Odenwaldring 13\n"]
[null,"Stefan Ludewig,  63796  Kahl/Main,  Hauptstraße 23\nMail:  StLudewig@AOL.com",null,null,null,null,null,"Version 1.1  -  freigeschaltet für 4 Konten"]
[]
[]
["Bedienungsanleitung"]
["1.","Funktionen:  Voll- bzw. Demoversion","5.     Systemvoraussetzung, Einstellungen"]
["2.","Anleitung","6.     Bestellen"]
["3.","Beschreibung","7.     Kontakt / Rechte / Gewährleistung"]
["4.","Screenshots / Videos"]
["5.","Systemvoraussetzung, Einstellungen"]
["1.","Funktionen:  Voll- bzw. Demoversion"]
["1.1","Das Programm verarbeitet alle wichtigen Urlaubs-, Sonderurlaubs- und Krankenstands-Einträge \naus dem \"SL-Urlaubsplaner\""]
[null,"-  Urlaub:    u   u/2  u?   u/0   E   O   G   Ü   sowie frei definierbar:  x   y   z"]
[null,"-  Krankenstand:   k   k/2   ki   Kur   sowie frei definierbar:  x   y   z"]
[null,"-  Optional:  alle Kürzel"]
["1.2","Demoversion:   Vollfunktionsfähig für die ersten 4 Konten des SL-Urlaubsplaners - zum Testen und Kennenlernen."]
["1.3","Vollversion:   Alle Konten aus Ihrer Kundenversion des SL-Urlaubsplaners und Ihre Lizenzierungsdaten werden in das \"u-k-Statistik\"-Tool übernommen."]
[]
["2.","Anleitung"]
["2.1","Erste Anwendung der Voll- / Demoversion:"]
[null,"-  Speichern Sie das Tool aus unserer Mail bzw. von unserer Homepage/unserer E-Mail auf Ihrem PC.\n-  Öffnen Sie es von dort  >  \"Bearbeiten aktivieren\"\n-  Laufzeitfehler 1004   >  \"Beenden\"  >   Speichern und Schließen  >  Programm  Öffnen  u.  Anwenden. \n\n-  Makrosicherheit ggf. absenken, siehe Pkt. 5."]
[null,null,"     der Pfad für die spätere Daten-Aktualisierung \n >  aus dem \"SL-Urlaubsplaner\"\n     (hier liegen die exportierten Daten des \n     Urlaubsplaners, s.Pkt. 2.2.)",null,null,null,null,null,null,"\n"]
[null,"Info   "]
["2.2","Datenübernahme aus dem \"SL-Urlaubsplaner\"  -  zuvor aktuellen Datenexport durchführen!",null,null,null,null,null,null,"    "]
[]
[null,"2015, ab Vers. 2.15.7\"  >  Menü > \"Rohdaten-Export nach Excel\""]
[]
[]
[]
["3.","Tool-Beschreibung"]
["3.1","-  Blatt \"UP-Rohdaten\" "]
[null,"Es enthält alle Kontendaten aus dem \"SL-Urlaubsplaner\""]
["3.2","-  Blatt \"Vorlage\" "]
[null,"Hier ist u.a. die grafische Vorlage gespeichert - Farben, Schrift und Zellgrößen können nur hier individuell geändert werden.\nTabellenerweiterungen nach der Spalte \"AJ\" sind je nach Anwenderwunsch möglich!"]
["3.3","-  Blatt \"Namen\" "]
[null,"Die Spalten A \"Kürzel\" und C \"Stelle/Funktion\" können vom Anwender ausgefüllt werden.\nBeim Wechsel in das Blatt \"Jahr xxxx\" werden die Einträge sofort übernommen."]
[null,"Werden in der Folge andere/erweiterte \"UP-Rohdatensätze\" eingespielt, so erhalten die nicht mehr aktuellen Konten eine gelbe Hintergrundmarkierung."]
[null,"Bei Bedarf können die gesamten gelbmarkierten Zeilen gelöscht werden!"]
[]
["3.4","-  Blatt \"Jahr xxxx\" "]
[]
[]
[]
[]
[]
[null,"Die angezeigte Zahl im jeweiligen Monat ist die Summe \nder im Bl. \"Optionen\" gewählten Urlaubs-Kürzel."]
[]
[]
[]
[]
[]
[]
[]
[]
[]
[]
[]
[]
[]
[]
["Funktionen:"]
[]
[]
[]
["3.5","-  Blatt \"Optionen\" "]
[null,"Es wird der Pfad zu den Urlaubsplanerdaten festgelegt, siehe 2.1. "]
[]
[]
[]
[]
[]
[]
[null,null,null,null,null,null,null,null,"Neue Kürzel:"]
[null,null,null,null,null,null,null,null,"h  -  Home Office"]
[null,null,null,null,null,null,null,null,"h/2  -  Home Office, halber Tag"]
[null,null,null,null,null,null,null,null,"Sch  -  Schulung"]
[null,null,null,null,null,null,null,null,"bv  -  Beschäftigungsverbot für werdende Mütter, Schwangerschaftsurlaub, etc. …"]
[]
[]
[]
["3.6","-  Blatt \"Kalender\" "]
[null,"siehe  Pkt. 3.4 b, Funktionen"]
[]
[]
[]
[]
[]
[]
[]
[]
[null,null,null,null,null,null,null,null," "]
[]
[]
[]
[]
[]
[]
[]
[]
[]
["3.7","-  Saisonarbeit:  "]
[null,"Wenn Sie im \"SL-Urlaubsplaner\" im Feld \"Kontendaten\" beim Vor- oder Nachnamen ein * an beliebiger Stelle beifügen, so erfolgt eine individuelle Berechnung im \"u-k-Statistik\"-Tool des anteiligen, saisonalen Urlaubs. Diesen geben Sie zuvor im \"SL-Urlaubsplaner\" ein."]
["4.","Screenshots / Videos"]
[null,"Hilfestellung erhalten Sie auch auf unserer Homepage. Hier werden anschaulich die wichtigsten Funktionen und Vorgehensweisen vorgestellt.\n>  Homepage  >  SL-Tools  >  \"u-k-Statistik\""]
["5."," Systemvoraussetzung, Einstellungen"]
[null,"-  \"SL-Urlaubsplaner\"-Version ab  2.15.7\n-  Excel, ggf. Makrosicherheit ändern, siehe Pkt. 5.\n-  Testen Sie bitte unsere kostenlose Demoversion."]
[null,"Hinweis für Programm-Anwender / Administrator:"]
[null,"In Einzelfällen ist die Einstellung der Makrosicherheit Ihres Systems anzupassen. Video hierzu liegt bei vor, bei Bedarf bitte anfordern."]
[null,"Im Excel:  > Datei > Optionen > Sicherheitscenter > Einstellungen Si. > Einstellungen für Makros"]
["6.","Bestellen  -  können Sie direkt über uns, siehe Kontakt"]
[null,"Testen Sie zuvor die vollfunktionsfähige und kostenlose Demoversion."]
[null,"   ●  Bei der Bestellung bitte angeben:   SL-Tool  \"u-k-Statistik\" "]
[null,"   ●  Ihre Rechnungsanschrift  /  ggf. auf Wunsch mit Ihrer Bestell-Nr. (SAP, etc.)"]
[null,"   ●  Arbeiten Sie bereits mit der Vollversion unseres \"SL-Urlaubsplaners\" ?"]
[null,"   ●  Bei Bestellungen aus den EU-Staaten bitte UID-Nr. angeben"]
["7.","Kontakt / Rechte / Gewährleistung"]
[null,"Software und Büroservice Christine Schremmer\nOdenwaldring 13\n63500 Seligenstadt\n\nTel.:   +49 (0) 6182 – 787 3203\nFax:   +49 (0) 6182 – 95 97 475\nE-Mail: christine.schremmer@t-online.de\nUst-IdNr.:  DE250861697"]
[null,"Rechte"]
[null,"Das hier vorgestellte SL-Tools ist ein spezifisches Excel-Arbeitsblatt zur Auswertung der Daten \ndes \"SL-Urlaubsplaners\". Es gelten daher für die Voll- und Demoversionen die AGB's, Lizenz-\nbedingungen und Schutzbestimmungen des \"SL-Urlaubsplaners\".  \n! Dies gilt für alle Bestandteile und Inhalte !"]
[null,"Gewährleistung:  Vor Bestellung prüfen und kontrollieren Sie bitte an Hand der aktuellen, kostenlosen Demoversion, ob Umfang und Funktionen Ihren Vorstellungen entsprechen."]
[null,"Bitte vergewissern Sie sich durch Testeinträge im \"SL-Urlaubsplaner\" über die Plausiblität der Auswertungen mit dem neuen \"SL-Tool\"."]
[null,"Mängelansprüche werden entsprechend Punkt 6 unserer AGB's behoben bzw. beglichen. "]
[null,"Das Programm ermöglicht individuelle, tabellarische Auswertungen in freien Eingabebereichen. Für diese ungeschützten Bereiche ist der Anwender selbst verantwortlich."]
[null,"Ihre Fragen werden wir gern und möglichst kurzfristig beantworten."]

{"sheet":"Intern","index":8,"n_rows":45,"n_cols":24,"rows_kept":45,"cut":false,"hidden":true,"merged":[[40,0,40,5]]}
[null,null,null,null,null,null,null,null,null,null,null,null,null,null,null,null,null,null,null,null,null,null,null,1]
[]
["C:\\Users\\Stefan\\Documents\\Frank\\November 2016\\UP-Rohdaten-Aktuell.xls"]
[]
["u","Urlaub",10,true,null,{"$f":"IF(D5=TRUE,C5,1)","v":10}]
["u/2","halber Tag Urlaub",10,true,null,{"$f":"IF(D6=TRUE,C6,1)","v":10}]
["u?","noch nicht genehmigter Urlaub",10,false,null,1]
["u/0","Urlaub unbezahlt",10,false,null,1]
["O","Sonderurlaub (Heirat, Umzug, Todesfall, etc.)",10,false,null,1]
["G","ganztägig Stunden abgefeiert",10,false,null,1]
["Ü","ganztägig genehmigte Überstunden abgefeiert",10,false,null,1]
["E","Erziehungsurlaub",10,false,null,1]
["x","individuell",10,false,null,1]
["y","individuell",10,false,null,1]
["z","individuell",10,false,null,1]
[null,null,10,false]
["k","krank",5,true,null,5]
["k/2","krank; 1/2 Tag",5,true,null,5]
["Kur","Kur/Reha",5,false,null,1]
["P","Pflege",5,false,null,1]
["Ki","Kind krank",5,false,null,1]
["bv","Beschäftigungsverbot für werdende Mütter, Schwangerschaftsurlaub etc.",5,false,null,1]
["x","individuell",5,false,null,{"$f":"IF(D23=TRUE,C23,F13)","v":1}]
["y","individuell",5,false,null,{"$f":"IF(D24=TRUE,C24,F14)","v":1}]
["z","individuell",5,false,null,{"$f":"IF(D25=TRUE,C25,F15)","v":1}]
[null,null,null,null,false]
["D","Dienstreise, Schulung, etc.",1,false,null,1]
["B","Bereitschaft",1,false,null,1]
["F","Frühschicht",1,false,null,1]
["T","Tagschicht",1,false,null,1]
["S","Spätschicht",1,false,null,1]
["N","Nachtschicht",1,false,null,1]
["a","anwesend",1,false,null,1]
["M","Militärdienst",1,false,null,1]
["KA","Kurzarbeit",1,false,null,1]
["Sch","Schulung",1,false,null,1]
["h","Homeoffice",1,false,null,1]
["h/2","Homeoffice halber Tag",1,false,null,1]
[]
["Neu in Vers. 1.2  vom  01.12.2015:"]
["Neue Kürzel:"]
["h","Home Office"]
["h/2  ","Home Office - halber Tag"]
["Sch","Schulung"]
["bv","bv  -  Beschäftigungsverbot für werdende Mütter, Schwangerschaftsurlaub, etc. …"]